[Event "January 2 Early 2024"]
[Site "https://www.chess.com"]
[Date "2024.01.02"]
[Round "3"]
[White "Lacasa Diaz, Josep Anton"]
[Black "neri_gaite"]
[Result "1-0"]
[Board "227"]
[TimeControl "180+1"]
[WhiteFideId "2203375"]
[WhiteElo "2320"]
[BlackElo "2017"]
[WhiteTeam "ESP"]
[WhiteClock "0:00:26"]
[BlackClock "0:00:03"]

1. Nf3 {[%clk 0:02:57]}  d5 {[%clk 0:02:56]} 2. e3 {[%clk 0:02:55]}  Nf6 {[%clk 0:02:52]} 3. c4 {[%clk 0:02:45]}  c6 {[%clk 0:02:46]} 4. b3 {[%clk 0:02:44]}  Bg4 {[%clk 0:02:36]} 5. Bb2 {[%clk 0:02:38]}  e6 {[%clk 0:02:35]} 6. Be2 {[%clk 0:02:36]}  Nbd7 {[%clk 0:02:35]} 7. O-O {[%clk 0:02:33]}  Bd6 {[%clk 0:02:34]} 8. d4 {[%clk 0:02:31]}  O-O {[%clk 0:02:31]} 9. Nbd2 {[%clk 0:02:30]}  Qc7 {[%clk 0:02:25]} 10. h3 {[%clk 0:02:27]}  Bh5 {[%clk 0:02:17]} 11. Rc1 {[%clk 0:02:25]}  Rac8 {[%clk 0:02:14]} 12. c5 {[%clk 0:02:13]}  Be7 {[%clk 0:02:04]} 13. b4 {[%clk 0:02:13]}  Bxf3 {[%clk 0:01:57]} 14. Bxf3 {[%clk 0:02:08]}  e5 {[%clk 0:01:53]} 15. dxe5 {[%clk 0:01:56]}  Nxe5 {[%clk 0:01:53]} 16. Be2 {[%clk 0:01:56]}  Nfd7 {[%clk 0:01:41]} 17. e4 {[%clk 0:01:41]}  Nf6 {[%clk 0:01:23]} 18. f4 {[%clk 0:01:39]}  Ng6 {[%clk 0:01:12]} 19. e5 {[%clk 0:01:38]}  Ne4 {[%clk 0:01:07]} 20. Nxe4 {[%clk 0:01:34]}  dxe4 {[%clk 0:01:08]} 21. Qd4 {[%clk 0:01:28]}  f5 {[%clk 0:01:00]} 22. Rcd1 {[%clk 0:00:56]}  Rcd8 {[%clk 0:00:46]} 23. Qe3 {[%clk 0:00:53]}  b6 {[%clk 0:00:36]} 24. Rxd8 {[%clk 0:00:44]}  Rxd8 {[%clk 0:00:34]} 25. g4 {[%clk 0:00:42]}  bxc5 {[%clk 0:00:17]} 26. gxf5 {[%clk 0:00:40]}  Nh4 {[%clk 0:00:17]} 27. Qxe4 {[%clk 0:00:32]}  cxb4 {[%clk 0:00:15]} 28. Bc4+ {[%clk 0:00:30]}  Kh8 {[%clk 0:00:13]} 29. f6 {[%clk 0:00:31]}  gxf6 {[%clk 0:00:09]} 30. exf6 {[%clk 0:00:31]}  Bc5+ {[%clk 0:00:10]} 31. Kh1 {[%clk 0:00:29]}  Qd7 {[%clk 0:00:06]} 32. f7+ {[%clk 0:00:26]}  Bd4 {[%clk 0:00:05]} 33. Bxd4+ {[%clk 0:00:25]}  Qxd4 {[%clk 0:00:04]} 34. Qxd4+ {[%clk 0:00:25]}  Rxd4 {[%clk 0:00:03]} 35. f8=Q# {[%clk 0:00:26]} 1-0

[Event "January 2 Early 2024"]
[Site "https://www.chess.com"]
[Date "2024.01.02"]
[Round "3"]
[White "Castillo Pena, Patricia Evarista"]
[Black "Pogorelskikh, Sofia"]
[Result "1/2-1/2"]
[Board "230"]
[TimeControl "180+1"]
[WhiteFideId "6412106"]
[BlackFideId "44164548"]
[WhiteElo "1921"]
[BlackElo "2307"]
[WhiteTeam "DOM"]
[BlackTeam "SRB"]
[WhiteClock "0:00:11"]
[BlackClock "0:00:04"]

1. d4 {[%clk 0:03:00]}  d5 {[%clk 0:02:58]} 2. Nf3 {[%clk 0:02:54]}  Nf6 {[%clk 0:02:56]} 3. e3 {[%clk 0:02:53]}  Bf5 {[%clk 0:02:37]} 4. c4 {[%clk 0:02:53]}  c6 {[%clk 0:02:35]} 5. Qb3 {[%clk 0:02:52]}  Qb6 {[%clk 0:02:21]} 6. c5 {[%clk 0:02:49]}  Qxb3 {[%clk 0:02:12]} 7. axb3 {[%clk 0:02:50]}  Nbd7 {[%clk 0:02:08]} 8. b4 {[%clk 0:02:50]}  a6 {[%clk 0:02:06]} 9. Nc3 {[%clk 0:02:44]}  Rb8 {[%clk 0:01:23]} 10. Be2 {[%clk 0:02:31]}  e6 {[%clk 0:01:22]} 11. Nh4 {[%clk 0:02:30]}  Be7 {[%clk 0:01:10]} 12. Nxf5 {[%clk 0:02:29]}  exf5 {[%clk 0:01:09]} 13. O-O {[%clk 0:02:27]}  O-O {[%clk 0:01:09]} 14. Bd3 {[%clk 0:02:25]}  Ne4 {[%clk 0:01:08]} 15. f3 {[%clk 0:02:23]}  Nxc3 {[%clk 0:01:02]} 16. bxc3 {[%clk 0:02:24]}  g6 {[%clk 0:00:59]} 17. e4 {[%clk 0:02:12]}  fxe4 {[%clk 0:00:50]} 18. fxe4 {[%clk 0:02:12]}  dxe4 {[%clk 0:00:50]} 19. Bxe4 {[%clk 0:02:11]}  Nf6 {[%clk 0:00:50]} 20. Bd3 {[%clk 0:02:01]}  Rfe8 {[%clk 0:00:38]} 21. Bf4 {[%clk 0:01:50]}  Rbd8 {[%clk 0:00:38]} 22. Rae1 {[%clk 0:01:40]}  Nd5 {[%clk 0:00:35]} 23. Bd2 {[%clk 0:01:34]}  Bf8 {[%clk 0:00:28]} 24. Bc4 {[%clk 0:01:08]}  Rxe1 {[%clk 0:00:23]} 25. Rxe1 {[%clk 0:01:09]}  h5 {[%clk 0:00:16]} 26. Bxd5 {[%clk 0:01:06]}  Rxd5 {[%clk 0:00:16]} 27. Re8 {[%clk 0:01:00]}  Kg7 {[%clk 0:00:14]} 28. Bh6+ {[%clk 0:00:47]}  Kxh6 {[%clk 0:00:14]} 29. Rxf8 {[%clk 0:00:47]}  Kg7 {[%clk 0:00:08]} 30. Rb8 {[%clk 0:00:39]}  Rd7 {[%clk 0:00:07]} 31. Re8 {[%clk 0:00:35]}  Kf6 {[%clk 0:00:07]} 32. Kf2 {[%clk 0:00:29]}  Re7 {[%clk 0:00:07]} 33. Rd8 {[%clk 0:00:26]}  Kf5 {[%clk 0:00:06]} 34. h3 {[%clk 0:00:19]}  Ke4 {[%clk 0:00:05]} 35. c4 {[%clk 0:00:11]}  h4 {[%clk 0:00:04]} 36. b5 {[%clk 0:00:11]}  axb5 {[%clk 0:00:04]} 37. cxb5 {[%clk 0:00:11]}  Kf5 {[%clk 0:00:03]} 38. bxc6 {[%clk 0:00:11]}  bxc6 {[%clk 0:00:03]} 39. Rd6 {[%clk 0:00:11]}  Re6 {[%clk 0:00:03]} 40. Rd7 {[%clk 0:00:11]}  Kf6 {[%clk 0:00:02]} 41. g3 {[%clk 0:00:10]}  hxg3+ {[%clk 0:00:02]} 42. Kxg3 {[%clk 0:00:11]}  Re7 {[%clk 0:00:01]} 43. Rd6+ {[%clk 0:00:11]}  Re6 {[%clk 0:00:02]} 44. Rd7 {[%clk 0:00:11]}  Kg7 {[%clk 0:00:02]} 45. Kf4 {[%clk 0:00:11]}  Kf8 {[%clk 0:00:02]} 46. h4 {[%clk 0:00:10]}  Ke8 {[%clk 0:00:03]} 47. Rc7 {[%clk 0:00:10]}  Rf6+ {[%clk 0:00:02]} 48. Ke5 {[%clk 0:00:10]}  Re6+ {[%clk 0:00:03]} 49. Kf4 {[%clk 0:00:10]}  Rf6+ {[%clk 0:00:04]} 50. Ke5 {[%clk 0:00:10]}  Re6+ {[%clk 0:00:04]} 51. Kf4 {[%clk 0:00:11]} 1/2-1/2

[Event "January 2 Early 2024"]
[Site "https://www.chess.com"]
[Date "2024.01.02"]
[Round "3"]
[White "Thake, Conrad"]
[Black "Skaric, Djuro"]
[Result "0-1"]
[Board "232"]
[TimeControl "180+1"]
[WhiteFideId "5602947"]
[BlackFideId "934569"]
[WhiteElo "1878"]
[BlackElo "2301"]
[WhiteTeam "MLT"]
[BlackTeam "SRB"]
[WhiteClock "0:00:20"]
[BlackClock "0:02:03"]

1. e4 {[%clk 0:03:00]}  d6 {[%clk 0:03:00]} 2. d4 {[%clk 0:03:00]}  g6 {[%clk 0:03:01]} 3. Nc3 {[%clk 0:02:59]}  Bg7 {[%clk 0:03:02]} 4. Nf3 {[%clk 0:02:59]}  Nf6 {[%clk 0:03:02]} 5. h3 {[%clk 0:02:59]}  O-O {[%clk 0:03:03]} 6. Be2 {[%clk 0:02:59]}  Nc6 {[%clk 0:03:03]} 7. Be3 {[%clk 0:02:59]}  e5 {[%clk 0:03:04]} 8. d5 {[%clk 0:02:58]}  Ne7 {[%clk 0:03:04]} 9. Qd2 {[%clk 0:02:57]}  Ne8 {[%clk 0:03:04]} 10. g4 {[%clk 0:02:50]}  f5 {[%clk 0:03:04]} 11. gxf5 {[%clk 0:02:50]}  gxf5 {[%clk 0:03:04]} 12. Bh6 {[%clk 0:02:49]}  f4 {[%clk 0:03:02]} 13. Bxg7 {[%clk 0:02:48]}  Nxg7 {[%clk 0:03:02]} 14. O-O-O {[%clk 0:02:48]}  a6 {[%clk 0:03:02]} 15. h4 {[%clk 0:02:44]}  Kh8 {[%clk 0:03:02]} 16. h5 {[%clk 0:02:44]}  Rf6 {[%clk 0:03:00]} 17. Rdg1 {[%clk 0:02:43]}  Qf8 {[%clk 0:02:57]} 18. Bf1 {[%clk 0:02:30]}  Bd7 {[%clk 0:02:55]} 19. Ng5 {[%clk 0:02:23]}  h6 {[%clk 0:02:51]} 20. Nf3 {[%clk 0:02:17]}  Kh7 {[%clk 0:02:47]} 21. Bh3 {[%clk 0:02:14]}  Bxh3 {[%clk 0:02:46]} 22. Rxh3 {[%clk 0:02:14]}  Qf7 {[%clk 0:02:47]} 23. Qe2 {[%clk 0:02:03]}  Rg8 {[%clk 0:02:44]} 24. Qc4 {[%clk 0:01:58]}  Ne8 {[%clk 0:02:43]} 25. Ne2 {[%clk 0:01:54]}  Rxg1+ {[%clk 0:02:40]} 26. Nexg1 {[%clk 0:01:53]}  Qg7 {[%clk 0:02:39]} 27. Qf1 {[%clk 0:01:50]}  Qg4 {[%clk 0:02:36]} 28. Rh2 {[%clk 0:01:34]}  Rf7 {[%clk 0:02:35]} 29. Qg2 {[%clk 0:01:24]}  Qxg2 {[%clk 0:02:34]} 30. Rxg2 {[%clk 0:01:24]}  Nf6 {[%clk 0:02:33]} 31. Nd2 {[%clk 0:01:21]}  Nxh5 {[%clk 0:02:33]} 32. c4 {[%clk 0:01:16]}  Nf6 {[%clk 0:02:30]} 33. f3 {[%clk 0:01:14]}  Nh5 {[%clk 0:02:27]} 34. Kd1 {[%clk 0:01:11]}  Ng3 {[%clk 0:02:26]} 35. b4 {[%clk 0:01:09]}  h5 {[%clk 0:02:25]} 36. Nh3 {[%clk 0:01:08]}  Kh6 {[%clk 0:02:25]} 37. Ke1 {[%clk 0:01:05]}  Rg7 {[%clk 0:02:24]} 38. Kf2 {[%clk 0:01:03]}  Ng6 {[%clk 0:02:24]} 39. Nf1 {[%clk 0:00:56]}  Nxf1 {[%clk 0:02:23]} 40. Kxf1 {[%clk 0:00:56]}  Nh4 {[%clk 0:02:17]} 41. Rxg7 {[%clk 0:00:53]}  Kxg7 {[%clk 0:02:17]} 42. Ng5 {[%clk 0:00:51]}  Kf6 {[%clk 0:02:15]} 43. Ne6 {[%clk 0:00:50]}  Nxf3 {[%clk 0:02:15]} 44. Nxc7 {[%clk 0:00:50]}  Nd2+ {[%clk 0:02:15]} 45. Ke2 {[%clk 0:00:47]}  Nxe4 {[%clk 0:02:15]} 46. Ne8+ {[%clk 0:00:40]}  Kf7 {[%clk 0:02:11]} 47. Nc7 {[%clk 0:00:38]}  Nc3+ {[%clk 0:02:09]} 48. Kf3 {[%clk 0:00:36]}  Nxa2 {[%clk 0:02:08]} 49. c5 {[%clk 0:00:36]}  Ke7 {[%clk 0:02:06]} 50. c6 {[%clk 0:00:31]}  bxc6 {[%clk 0:02:05]} 51. dxc6 {[%clk 0:00:30]}  Nxb4 {[%clk 0:02:04]} 52. Nd5+ {[%clk 0:00:20]}  Nxd5 {[%clk 0:02:03]} 0-1

[Event "January 2 Early 2024"]
[Site "https://www.chess.com"]
[Date "2024.01.02"]
[Round "3"]
[White "Eggleston, Thomas A"]
[Black "Babayeva, Nasrin"]
[Result "1-0"]
[Board "233"]
[TimeControl "180+1"]
[WhiteFideId "412139"]
[BlackFideId "13416626"]
[WhiteElo "2299"]
[BlackElo "1798"]
[WhiteTeam "ENG"]
[BlackTeam "AZE"]
[WhiteClock "0:01:00"]
[BlackClock "0:00:03"]

1. e4 {[%clk 0:03:00]}  d5 {[%clk 0:02:54]} 2. Nc3 {[%clk 0:02:58]}  c6 {[%clk 0:02:44]} 3. Nf3 {[%clk 0:02:55]}  Bg4 {[%clk 0:02:37]} 4. Be2 {[%clk 0:02:54]}  e6 {[%clk 0:02:27]} 5. Ne5 {[%clk 0:02:53]}  Bxe2 {[%clk 0:02:26]} 6. Qxe2 {[%clk 0:02:53]}  Nf6 {[%clk 0:02:24]} 7. d3 {[%clk 0:02:52]}  Bd6 {[%clk 0:02:22]} 8. Nf3 {[%clk 0:02:49]}  Bb4 {[%clk 0:01:55]} 9. O-O {[%clk 0:02:45]}  Bxc3 {[%clk 0:01:53]} 10. bxc3 {[%clk 0:02:44]}  O-O {[%clk 0:01:54]} 11. Rb1 {[%clk 0:02:33]}  b6 {[%clk 0:01:49]} 12. Bg5 {[%clk 0:02:20]}  h6 {[%clk 0:01:32]} 13. Bh4 {[%clk 0:02:19]}  e5 {[%clk 0:01:15]} 14. Nxe5 {[%clk 0:02:15]}  Re8 {[%clk 0:01:11]} 15. Ng4 {[%clk 0:02:08]}  Nbd7 {[%clk 0:01:04]} 16. f4 {[%clk 0:01:45]}  dxe4 {[%clk 0:00:57]} 17. dxe4 {[%clk 0:01:44]}  Rxe4 {[%clk 0:00:45]} 18. Qxe4 {[%clk 0:01:40]}  Nxe4 {[%clk 0:00:45]} 19. Bxd8 {[%clk 0:01:39]}  Rxd8 {[%clk 0:00:46]} 20. Rbd1 {[%clk 0:01:31]}  Nxc3 {[%clk 0:00:46]} 21. Rd3 {[%clk 0:01:31]}  Nd5 {[%clk 0:00:37]} 22. c4 {[%clk 0:01:24]}  Nb4 {[%clk 0:00:24]} 23. Rd6 {[%clk 0:01:24]}  Kf8 {[%clk 0:00:12]} 24. Rfd1 {[%clk 0:01:05]}  Ke7 {[%clk 0:00:10]} 25. Ne5 {[%clk 0:01:05]}  Nd5 {[%clk 0:00:06]} 26. Rxd7+ {[%clk 0:01:00]}  Rxd7 {[%clk 0:00:03]} 27. Nxd7 {[%clk 0:01:00]} 1-0

[Event "January 2 Early 2024"]
[Site "https://www.chess.com"]
[Date "2024.01.02"]
[Round "4"]
[White "Pranav Anand"]
[Black "Carlsen, Magnus"]
[Result "0-1"]
[Board "1"]
[TimeControl "180+1"]
[WhiteFideId "46626786"]
[BlackFideId "1503014"]
[WhiteElo "2914"]
[BlackElo "3367"]
[WhiteTeam "IND"]
[BlackTeam "NOR"]
[WhiteClock "0:00:11"]
[BlackClock "0:00:54"]

1. e4 {[%clk 0:03:00]}  a6 {[%clk 0:02:58]} 2. d4 {[%clk 0:02:59]}  h6 {[%clk 0:02:57]} 3. Bd3 {[%clk 0:02:59]}  c5 {[%clk 0:02:53]} 4. c3 {[%clk 0:02:57]}  cxd4 {[%clk 0:02:49]} 5. cxd4 {[%clk 0:02:58]}  d5 {[%clk 0:02:49]} 6. e5 {[%clk 0:02:55]}  Nc6 {[%clk 0:02:47]} 7. Ne2 {[%clk 0:02:53]}  g6 {[%clk 0:02:34]} 8. Nbc3 {[%clk 0:02:52]}  h5 {[%clk 0:02:33]} 9. O-O {[%clk 0:02:50]}  Nh6 {[%clk 0:02:32]} 10. Bg5 {[%clk 0:02:44]}  Bf5 {[%clk 0:02:29]} 11. Nf4 {[%clk 0:02:38]}  Bxd3 {[%clk 0:02:18]} 12. Qxd3 {[%clk 0:02:37]}  Nf5 {[%clk 0:02:13]} 13. e6 {[%clk 0:02:29]}  Bg7 {[%clk 0:02:09]} 14. exf7+ {[%clk 0:02:25]}  Kxf7 {[%clk 0:02:09]} 15. Ncxd5 {[%clk 0:02:22]}  Ncxd4 {[%clk 0:02:08]} 16. Rfe1 {[%clk 0:02:17]}  Re8 {[%clk 0:02:07]} 17. Rad1 {[%clk 0:02:13]}  Qd6 {[%clk 0:02:04]} 18. Ne3 {[%clk 0:01:37]}  Qc5 {[%clk 0:01:42]} 19. Nxf5 {[%clk 0:01:00]}  Qxf5 {[%clk 0:01:41]} 20. Qc4+ {[%clk 0:01:01]}  e6 {[%clk 0:01:41]} 21. Qc7+ {[%clk 0:00:51]}  Kg8 {[%clk 0:01:41]} 22. h4 {[%clk 0:00:52]}  b5 {[%clk 0:01:29]} 23. Qd7 {[%clk 0:00:48]}  e5 {[%clk 0:01:12]} 24. Qxf5 {[%clk 0:00:48]}  Nxf5 {[%clk 0:01:13]} 25. Nd5 {[%clk 0:00:47]}  Rac8 {[%clk 0:01:12]} 26. Nf6+ {[%clk 0:00:45]}  Bxf6 {[%clk 0:01:11]} 27. Bxf6 {[%clk 0:00:45]}  e4 {[%clk 0:01:07]} 28. Re2 {[%clk 0:00:38]}  e3 {[%clk 0:01:06]} 29. fxe3 {[%clk 0:00:37]}  Rxe3 {[%clk 0:01:05]} 30. Rxe3 {[%clk 0:00:34]}  Nxe3 {[%clk 0:01:06]} 31. Rd8+ {[%clk 0:00:27]}  Rxd8 {[%clk 0:01:06]} 32. Bxd8 {[%clk 0:00:28]}  Kf7 {[%clk 0:01:05]} 33. b3 {[%clk 0:00:26]}  Ke6 {[%clk 0:01:05]} 34. Kf2 {[%clk 0:00:26]}  Nd5 {[%clk 0:01:05]} 35. Kf3 {[%clk 0:00:26]}  Kf5 {[%clk 0:01:04]} 36. Ba5 {[%clk 0:00:24]}  Nf4 {[%clk 0:01:03]} 37. Bd2 {[%clk 0:00:23]}  Nd3 {[%clk 0:01:03]} 38. Ke3 {[%clk 0:00:20]}  Nf4 {[%clk 0:00:59]} 39. g3 {[%clk 0:00:18]}  Ne6 {[%clk 0:01:00]} 40. Kf3 {[%clk 0:00:18]}  Nd4+ {[%clk 0:00:58]} 41. Ke3 {[%clk 0:00:17]}  Nc6 {[%clk 0:00:59]} 42. Kf3 {[%clk 0:00:18]}  Ne5+ {[%clk 0:00:59]} 43. Ke3 {[%clk 0:00:18]}  Kg4 {[%clk 0:01:00]} 44. Ke4 {[%clk 0:00:17]}  Nc6 {[%clk 0:00:58]} 45. Bf4 {[%clk 0:00:17]}  Ne7 {[%clk 0:00:58]} 46. Ke5 {[%clk 0:00:16]}  Nf5 {[%clk 0:00:59]} 47. Kf6 {[%clk 0:00:13]}  Nxg3 {[%clk 0:00:59]} 48. Bg5 {[%clk 0:00:13]}  Nf5 {[%clk 0:00:59]} 49. Kxg6 {[%clk 0:00:13]}  Nxh4+ {[%clk 0:01:00]} 50. Kf6 {[%clk 0:00:13]}  Nf3 {[%clk 0:01:00]} 51. Be3 {[%clk 0:00:10]}  h4 {[%clk 0:01:00]} 52. Ba7 {[%clk 0:00:11]}  h3 {[%clk 0:00:58]} 53. Bb8 {[%clk 0:00:12]}  b4 {[%clk 0:00:55]} 54. Ke6 {[%clk 0:00:11]}  Nd4+ {[%clk 0:00:55]} 55. Kd5 {[%clk 0:00:12]}  Ne2 {[%clk 0:00:53]} 56. Bh2 {[%clk 0:00:12]}  Nc3+ {[%clk 0:00:51]} 57. Kc4 {[%clk 0:00:13]}  Nxa2 {[%clk 0:00:51]} 58. Kc5 {[%clk 0:00:11]}  Kf3 {[%clk 0:00:51]} 59. Kb6 {[%clk 0:00:11]}  Kg2 {[%clk 0:00:51]} 60. Bd6 {[%clk 0:00:11]}  h2 {[%clk 0:00:51]} 61. Bxh2 {[%clk 0:00:10]}  Kxh2 {[%clk 0:00:52]} 62. Kxa6 {[%clk 0:00:11]}  Kg3 {[%clk 0:00:53]} 63. Kb5 {[%clk 0:00:11]}  Kf3 {[%clk 0:00:54]} 64. Kc4 {[%clk 0:00:11]}  Ke3 {[%clk 0:00:54]} 0-1

[Event "January 2 Early 2024"]
[Site "https://www.chess.com"]
[Date "2024.01.02"]
[Round "4"]
[White "Caruana, Fabiano"]
[Black "Finek, Vaclav"]
[Result "1-0"]
[Board "6"]
[TimeControl "180+1"]
[WhiteFideId "2020009"]
[BlackFideId "23718293"]
[WhiteElo "3050"]
[BlackElo "2847"]
[WhiteTeam "USA"]
[BlackTeam "CZE"]
[WhiteClock "0:02:13"]
[BlackClock "0:00:11"]

1. e4 {[%clk 0:03:00]}  c5 {[%clk 0:02:58]} 2. Nf3 {[%clk 0:03:00]}  g6 {[%clk 0:02:58]} 3. c3 {[%clk 0:03:00]}  Bg7 {[%clk 0:02:53]} 4. d4 {[%clk 0:03:00]}  cxd4 {[%clk 0:02:53]} 5. cxd4 {[%clk 0:03:01]}  d5 {[%clk 0:02:53]} 6. e5 {[%clk 0:03:01]}  Nh6 {[%clk 0:02:54]} 7. h3 {[%clk 0:02:59]}  O-O {[%clk 0:02:52]} 8. Nc3 {[%clk 0:03:00]}  f6 {[%clk 0:02:43]} 9. Bb5 {[%clk 0:02:56]}  Nf7 {[%clk 0:02:31]} 10. exf6 {[%clk 0:02:55]}  Bxf6 {[%clk 0:02:28]} 11. O-O {[%clk 0:02:55]}  e6 {[%clk 0:02:24]} 12. Re1 {[%clk 0:02:53]}  Bd7 {[%clk 0:02:24]} 13. Bf4 {[%clk 0:02:50]}  a6 {[%clk 0:02:15]} 14. Bxd7 {[%clk 0:02:50]}  Qxd7 {[%clk 0:02:15]} 15. Na4 {[%clk 0:02:51]}  Qb5 {[%clk 0:01:55]} 16. Rxe6 {[%clk 0:02:45]}  Bd8 {[%clk 0:01:53]} 17. Nc5 {[%clk 0:02:39]}  Nd7 {[%clk 0:01:14]} 18. a4 {[%clk 0:02:37]}  Nxc5 {[%clk 0:01:14]} 19. axb5 {[%clk 0:02:37]}  Nxe6 {[%clk 0:01:14]} 20. Be3 {[%clk 0:02:33]}  Nc7 {[%clk 0:01:05]} 21. bxa6 {[%clk 0:02:32]}  Rxa6 {[%clk 0:01:00]} 22. Rxa6 {[%clk 0:02:31]}  bxa6 {[%clk 0:00:59]} 23. Ne5 {[%clk 0:02:31]}  Be7 {[%clk 0:00:52]} 24. Qc2 {[%clk 0:02:23]}  Bd6 {[%clk 0:00:51]} 25. Qc6 {[%clk 0:02:20]}  Nb5 {[%clk 0:00:42]} 26. Qxd5 {[%clk 0:02:16]}  Bxe5 {[%clk 0:00:41]} 27. dxe5 {[%clk 0:02:17]}  Rd8 {[%clk 0:00:41]} 28. Qa2 {[%clk 0:02:16]}  Rd1+ {[%clk 0:00:34]} 29. Kh2 {[%clk 0:02:16]}  Nc7 {[%clk 0:00:33]} 30. e6 {[%clk 0:02:16]}  Nd6 {[%clk 0:00:30]} 31. e7+ {[%clk 0:02:16]}  Kg7 {[%clk 0:00:27]} 32. Bf4 {[%clk 0:02:13]}  Nce8 {[%clk 0:00:18]} 33. Be5+ {[%clk 0:02:13]}  Kh6 {[%clk 0:00:17]} 34. Qg8 {[%clk 0:02:13]}  Re1 {[%clk 0:00:13]} 35. Qf8+ {[%clk 0:02:13]}  Kh5 {[%clk 0:00:10]} 36. g4+ {[%clk 0:02:12]}  Kh4 {[%clk 0:00:11]} 37. Bg3+ {[%clk 0:02:12]}  Kg5 {[%clk 0:00:11]} 38. f4# {[%clk 0:02:13]} 1-0

[Event "January 2 Early 2024"]
[Site "https://www.chess.com"]
[Date "2024.01.02"]
[Round "4"]
[White "Klukin, Kirill"]
[Black "Xiong, Jeffery"]
[Result "0-1"]
[Board "10"]
[TimeControl "180+1"]
[WhiteFideId "24199273"]
[BlackFideId "2047640"]
[WhiteElo "2821"]
[BlackElo "3030"]
[WhiteTeam "RUS"]
[BlackTeam "USA"]
[WhiteClock "0:00:02"]
[BlackClock "0:00:42"]

1. d4 {[%clk 0:03:00]}  Nf6 {[%clk 0:02:59]} 2. Nf3 {[%clk 0:03:00]}  d5 {[%clk 0:02:58]} 3. c4 {[%clk 0:03:01]}  e6 {[%clk 0:02:58]} 4. Nc3 {[%clk 0:03:01]}  dxc4 {[%clk 0:02:56]} 5. e3 {[%clk 0:03:00]}  a6 {[%clk 0:02:56]} 6. Bxc4 {[%clk 0:02:58]}  b5 {[%clk 0:02:56]} 7. Be2 {[%clk 0:02:59]}  Bb7 {[%clk 0:02:56]} 8. O-O {[%clk 0:02:59]}  Nbd7 {[%clk 0:02:56]} 9. b3 {[%clk 0:03:00]}  c5 {[%clk 0:02:56]} 10. Bb2 {[%clk 0:03:01]}  Bd6 {[%clk 0:02:55]} 11. a4 {[%clk 0:03:00]}  b4 {[%clk 0:02:55]} 12. Nb1 {[%clk 0:03:01]}  O-O {[%clk 0:02:45]} 13. Nbd2 {[%clk 0:03:01]}  a5 {[%clk 0:02:45]} 14. Nc4 {[%clk 0:02:52]}  Be7 {[%clk 0:02:45]} 15. Nfe5 {[%clk 0:02:50]}  cxd4 {[%clk 0:02:43]} 16. Nxd7 {[%clk 0:02:49]}  Nxd7 {[%clk 0:02:40]} 17. Bxd4 {[%clk 0:02:49]}  Nc5 {[%clk 0:02:38]} 18. Bxc5 {[%clk 0:02:46]}  Bxc5 {[%clk 0:02:37]} 19. Bf3 {[%clk 0:02:46]}  Bd5 {[%clk 0:02:31]} 20. Rc1 {[%clk 0:02:40]}  Rc8 {[%clk 0:02:30]} 21. Qe2 {[%clk 0:02:36]}  Qc7 {[%clk 0:02:27]} 22. Rfd1 {[%clk 0:02:27]}  Rfd8 {[%clk 0:02:26]} 23. Bxd5 {[%clk 0:02:19]}  exd5 {[%clk 0:02:24]} 24. Nb2 {[%clk 0:02:19]}  Qe7 {[%clk 0:02:11]} 25. Qf3 {[%clk 0:02:11]}  Qe6 {[%clk 0:02:06]} 26. g3 {[%clk 0:02:03]}  h6 {[%clk 0:02:00]} 27. Kg2 {[%clk 0:01:58]}  f5 {[%clk 0:01:27]} 28. Nd3 {[%clk 0:01:22]}  Bd6 {[%clk 0:01:27]} 29. Nf4 {[%clk 0:01:22]}  Bxf4 {[%clk 0:01:27]} 30. Qxf4 {[%clk 0:01:23]}  Rc3 {[%clk 0:01:24]} 31. Qd4 {[%clk 0:00:52]}  Rdc8 {[%clk 0:01:23]} 32. Rb1 {[%clk 0:00:45]}  R8c5 {[%clk 0:01:22]} 33. Rb2 {[%clk 0:00:41]}  Kf7 {[%clk 0:01:20]} 34. Rbd2 {[%clk 0:00:37]}  Kg6 {[%clk 0:00:48]} 35. Rd3 {[%clk 0:00:36]}  Qe4+ {[%clk 0:00:44]} 36. Qxe4 {[%clk 0:00:31]}  dxe4 {[%clk 0:00:45]} 37. Rd6+ {[%clk 0:00:31]}  Kh7 {[%clk 0:00:45]} 38. Rd7 {[%clk 0:00:16]}  Rxb3 {[%clk 0:00:45]} 39. R1d6 {[%clk 0:00:07]}  Rc2 {[%clk 0:00:42]} 40. g4 {[%clk 0:00:04]}  Rbb2 {[%clk 0:00:41]} 41. Ra6 {[%clk 0:00:01]}  Rxf2+ {[%clk 0:00:42]} 42. Kg3 {[%clk 0:00:02]}  Rf3+ {[%clk 0:00:42]} 43. Kh4 {[%clk 0:00:02]}  Rxh2# {[%clk 0:00:42]} 0-1

[Event "January 2 Early 2024"]
[Site "https://www.chess.com"]
[Date "2024.01.02"]
[Round "4"]
[White "Khripachenko, Alexander"]
[Black "Salem, A.R. Saleh"]
[Result "1/2-1/2"]
[Board "12"]
[TimeControl "180+1"]
[WhiteFideId "54184975"]
[BlackFideId "9301348"]
[WhiteElo "2799"]
[BlackElo "3018"]
[WhiteTeam "FID"]
[BlackTeam "UAE"]
[WhiteClock "0:00:07"]
[BlackClock "0:00:04"]

1. e4 {[%clk 0:02:59]}  e5 {[%clk 0:03:00]} 2. Nf3 {[%clk 0:02:59]}  Nc6 {[%clk 0:03:00]} 3. Bb5 {[%clk 0:03:00]}  a6 {[%clk 0:03:00]} 4. Ba4 {[%clk 0:03:00]}  Nf6 {[%clk 0:03:01]} 5. O-O {[%clk 0:03:01]}  Be7 {[%clk 0:03:02]} 6. Re1 {[%clk 0:02:59]}  b5 {[%clk 0:03:02]} 7. Bb3 {[%clk 0:02:59]}  O-O {[%clk 0:03:03]} 8. d3 {[%clk 0:02:52]}  d6 {[%clk 0:03:01]} 9. c3 {[%clk 0:02:52]}  Bb7 {[%clk 0:02:54]} 10. d4 {[%clk 0:02:49]}  h6 {[%clk 0:02:35]} 11. Nbd2 {[%clk 0:02:43]}  Re8 {[%clk 0:02:24]} 12. Nf1 {[%clk 0:02:42]}  Bf8 {[%clk 0:02:20]} 13. Ng3 {[%clk 0:02:42]}  exd4 {[%clk 0:02:19]} 14. cxd4 {[%clk 0:02:43]}  Na5 {[%clk 0:02:20]} 15. Bc2 {[%clk 0:02:44]}  c5 {[%clk 0:02:20]} 16. Bf4 {[%clk 0:02:34]}  cxd4 {[%clk 0:02:16]} 17. Qxd4 {[%clk 0:02:27]}  Rc8 {[%clk 0:02:14]} 18. Qd3 {[%clk 0:01:34]}  Nc4 {[%clk 0:02:09]} 19. b3 {[%clk 0:01:13]}  Na3 {[%clk 0:02:06]} 20. Rac1 {[%clk 0:01:10]}  d5 {[%clk 0:01:46]} 21. e5 {[%clk 0:01:09]}  Ne4 {[%clk 0:01:46]} 22. Nxe4 {[%clk 0:00:43]}  dxe4 {[%clk 0:00:36]} 23. Qxd8 {[%clk 0:00:43]}  Rexd8 {[%clk 0:00:37]} 24. Bxe4 {[%clk 0:00:44]}  Rxc1 {[%clk 0:00:38]} 25. Bxc1 {[%clk 0:00:45]}  Bb4 {[%clk 0:00:38]} 26. Bd2 {[%clk 0:00:39]}  Bxd2 {[%clk 0:00:18]} 27. Nxd2 {[%clk 0:00:39]}  Rxd2 {[%clk 0:00:12]} 28. Bxb7 {[%clk 0:00:40]}  Rxa2 {[%clk 0:00:12]} 29. g3 {[%clk 0:00:32]}  Nc2 {[%clk 0:00:12]} 30. Re2 {[%clk 0:00:29]}  Ra1+ {[%clk 0:00:10]} 31. Kg2 {[%clk 0:00:29]}  Nd4 {[%clk 0:00:11]} 32. Rd2 {[%clk 0:00:22]}  Ne6 {[%clk 0:00:11]} 33. b4 {[%clk 0:00:19]}  a5 {[%clk 0:00:07]} 34. bxa5 {[%clk 0:00:19]}  Rxa5 {[%clk 0:00:08]} 35. Rd5 {[%clk 0:00:12]}  g5 {[%clk 0:00:06]} 36. Bc6 {[%clk 0:00:11]}  Nc7 {[%clk 0:00:05]} 37. Rc5 {[%clk 0:00:08]}  Kg7 {[%clk 0:00:05]} 38. Bd7 {[%clk 0:00:08]}  Ra7 {[%clk 0:00:05]} 39. Bxb5 {[%clk 0:00:06]}  Ne6 {[%clk 0:00:06]} 40. Rc6 {[%clk 0:00:06]}  Ra5 {[%clk 0:00:06]} 41. Bc4 {[%clk 0:00:05]}  Rxe5 {[%clk 0:00:04]} 42. Bxe6 {[%clk 0:00:06]}  fxe6 {[%clk 0:00:05]} 43. Rc7+ {[%clk 0:00:06]}  Kg6 {[%clk 0:00:05]} 44. g4 {[%clk 0:00:06]}  h5 {[%clk 0:00:05]} 45. h3 {[%clk 0:00:07]}  hxg4 {[%clk 0:00:05]} 46. hxg4 {[%clk 0:00:08]}  Re4 {[%clk 0:00:06]} 47. Kg3 {[%clk 0:00:08]}  Re1 {[%clk 0:00:05]} 48. Ra7 {[%clk 0:00:07]}  Kf6 {[%clk 0:00:04]} 49. Ra5 {[%clk 0:00:07]} 1/2-1/2